bitfinex/quotes_SOLUSD_20250212
["timestamp","ask_amount","ask_price","bid_price","bid_amount"]
[1739319725881,15.42559526,197.37,197.31,5.0681]
[1739319726102,15.42559526,197.36,197.31,5.0681]
[1739319726409,15.42559526,197.36,197.31,18.47994853]
[1739319726978,15.42559526,197.37,197.31,18.47994853]
[1739319727178,15.42559526,197.39,197.33,15.42559526]
[1739319727608,15.42559526,197.38,197.32,15.42559526]
[1739319728207,15.42559526,197.35,197.31,18.50994853]
[1739319728887,15.42559526,197.36,197.31,18.50994853]
[1739319729086,15.42559526,197.38,197.32,13.41184853]
[1739319729297,15.42559526,197.39,197.33,15.42559526]
[1739319729588,15.48859526,197.4,197.33,15.42559526]
[1739319730405,15.42559526,197.39,197.33,15.42559526]
[1739319730599,15.42559526,197.38,197.32,13.41184853]
[1739319730922,15.42559526,197.37,197.31,33.19409526]
[1739319731286,0.063,197.4,197.31,5.0981]
[1739319731287,15.42559526,197.36,197.31,5.0981]
[1739319731501,15.42559526,197.35,197.31,5.0981]
[1739319731809,15.42559526,197.36,197.31,5.0981]
[1739319731985,15.42559526,197.37,197.31,5.0981]
[1739319732190,15.42559526,197.38,197.31,33.19409526]
[1739319732391,15.42559526,197.38,197.32,15.42559526]
[1739319733009,0.063,197.4,197.35,15.42559526]
[1739319733201,0.063,197.4,197.36,5.0668]
[1739319733503,0.063,197.4,197.36,17.734]
[1739319734006,0.063,197.4,197.36,33.15959526]
[1739319734190,0.063,197.4,197.39,15.42559526]
[1739319734393,0.063,197.4,197.39,28.83744379]
[1739319734594,15.42559526,197.49,197.4,1.0]
[1739319734784,15.48859526,197.5,197.44,15.42559526]
[1739319734986,0.063,197.5,197.44,15.42559526]
[1739319735190,0.063,197.5,197.45,15.42559526]
[1739319735391,15.48859526,197.5,197.43,28.83744379]
[1739319735604,15.42559526,197.46,197.42,5.0653]
[1739319735901,15.42559526,197.45,197.42,5.0653]
[1739319736694,15.42559526,197.47,197.42,5.0653]
[1739319736898,15.42559526,197.49,197.43,28.83744379]
[1739319737090,15.48859526,197.5,197.43,28.83744379]
[1739319737291,15.48859526,197.5,197.45,13.41184853]
[1739319737786,0.063,197.5,197.45,28.83744379]
[1739319738104,0.063,197.5,197.46,15.42559526]
[1739319738507,0.063,197.5,197.45,28.83744379]
[1739319738816,0.063,197.5,197.46,15.42559526]
[1739319739218,0.063,197.5,197.47,5.064]
[1739319739812,15.42559526,197.49,197.42,15.42559526]
[1739319740233,15.42559526,197.49,197.43,13.41184853]
[1739319740418,0.063,197.5,197.46,15.42559526]
[1739319740793,0.063,197.5,197.48,15.42559526]
[1739319741199,0.063,197.5,197.49,15.42559526]
[1739319741406,0.063,197.5,197.49,20.48909526]
[1739319741910,0.063,197.5,197.49,5.0635]
[1739319743417,0.063,197.5,197.48,18.47564853]
[1739319743994,0.063,197.5,197.48,5.0638]
[1739319744194,15.48859526,197.5,197.48,5.0638]
[1739319744406,15.42559526,197.49,197.44,5.0648]
[1739319744600,15.42559526,197.47,197.44,5.0648]
[1739319745122,15.42559526,197.48,197.44,5.0648]
[1739319746400,15.42559526,197.49,197.44,5.0648]
[1739319746903,0.063,197.5,197.45,15.42559526]
[1739319747105,0.063,197.5,197.46,15.42559526]
[1739319747319,0.063,197.5,197.47,13.41184853]
[1739319747521,15.48859526,197.5,197.45,5.0645]
[1739319747712,15.42559526,197.49,197.45,5.0645]
[1739319748023,15.48859526,197.5,197.45,5.0645]
[1739319748225,15.48859526,197.5,197.45,18.47634853]
[1739319748803,0.063,197.5,197.45,18.47634853]
[1739319749312,0.063,197.5,197.47,15.42559526]
[1739319749513,0.063,197.5,197.48,15.42559526]
[1739319749914,0.063,197.5,197.47,20.48959526]
[1739319750404,0.063,197.5,197.49,15.42559526]
[1739319750600,0.0001,197.5,197.49,28.83744379]
[1739319751200,0.0001,197.5,197.49,35.08924379]
[1739319751400,0.0001,197.5,197.49,37.63364379]
[1739319751614,0.0001,197.5,197.49,42.69714379]
[1739319751821,0.0001,197.5,197.49,41.69714379]
[1739319752325,0.0001,197.5,197.49,42.69714379]
[1739319753835,0.0001,197.5,197.49,41.69714379]
[1739319754712,0.0001,197.5,197.49,5.0635]
[1739319754913,15.42569526,197.5,197.49,5.0635]
[1739319755126,15.42569526,197.5,197.45,5.0645]
[1739319755424,15.42559526,197.47,197.45,5.0645]
[1739319755645,15.42559526,197.48,197.45,5.0645]
[1739319756015,15.42559526,197.48,197.43,18.47684853]
[1739319756417,15.42559526,197.46,197.43,5.065]
[1739319756622,15.42559526,197.45,197.43,5.065]
[1739319756828,15.42559526,197.44,197.43,5.065]
[1739319757318,15.42559526,197.46,197.43,5.065]
[1739319758139,15.42559526,197.47,197.42,13.41184853]
[1739319758317,15.42559526,197.48,197.42,13.41184853]
[1739319758914,15.42559526,197.49,197.42,28.83744379]
[1739319759732,15.42559526,197.48,197.42,13.41184853]
[1739319760428,15.42559526,197.48,197.43,5.065]
[1739319760808,15.42559526,197.45,197.43,5.065]
[1739319761309,15.42559526,197.44,197.41,5.0653]
[1739319761523,15.42559526,197.42,197.41,5.0653]
[1739319762023,15.42559526,197.43,197.41,5.0653]
[1739319762425,15.42559526,197.43,197.4,0.03]
[1739319764236,15.42559526,197.44,197.4,0.03]
[1739319764432,15.42559526,197.45,197.4,17.7604]
[1739319764735,15.42559526,197.46,197.4,33.18599526]
[1739319765028,15.42559526,197.45,197.4,17.7604]
[1739319765243,15.42559526,197.44,197.4,17.7604]
[1739319765423,15.42559526,197.45,197.4,17.7604]
[1739319765835,21.78169526,197.5,197.4,17.7604]
[1739319765836,15.42559526,197.44,197.4,17.7604]
[1739319766246,15.42559526,197.44,197.4,12.6946]
[1739319767950,15.42559526,197.45,197.4,12.6946]
[1739319769649,15.42559526,197.45,197.4,17.7604]
[1739319770817,15.42559526,197.44,197.4,17.7604]
[1739319771417,15.42559526,197.44,197.4,12.6946]
[1739319771623,15.42559526,197.41,197.4,0.03]
[1739319772125,15.42559526,197.42,197.4,0.03]
[1739319772524,15.42559526,197.43,197.4,0.03]
[1739319773841,21.78169526,197.5,197.4,0.03]
[1739319773842,15.42559526,197.42,197.4,0.03]
[1739319774022,15.42559526,197.41,197.4,0.03]
[1739319776949,15.42559526,197.42,197.4,0.03]
[1739319777452,15.42559526,197.44,197.4,0.03]
[1739319777755,23.32479526,197.5,197.4,13.44184853]
[1739319777756,15.42559526,197.46,197.4,13.44184853]
[1739319778846,15.42559526,197.45,197.41,5.0655]
[1739319780264,15.42559526,197.47,197.41,5.0655]
[1739319780436,1.5432,197.5,197.43,15.42559526]
[1739319780437,15.42559526,197.49,197.43,15.42559526]
[1739319780632,15.42559526,197.48,197.42,13.41184853]
[1739319780833,15.42559526,197.46,197.41,5.0655]
[1739319781052,15.42559526,197.45,197.41,5.0655]
[1739319782057,15.42559526,197.43,197.4,5.0958]
[1739319782464,15.42559526,197.44,197.4,5.0958]
[1739319782663,15.42559526,197.45,197.4,5.0958]
[1739319782831,15.42559526,197.46,197.4,18.50764853]
[1739319783036,15.42559526,197.46,197.4,31.17224853]
[1739319783466,15.42559526,197.46,197.41,13.41184853]
[1739319784139,15.42559526,197.46,197.42,5.0653]
[1739319784962,15.42559526,197.49,197.43,28.83744379]
[1739319785459,15.42559526,197.49,197.43,13.41184853]
[1739319785864,15.42559526,197.48,197.43,13.41184853]
[1739319786457,15.42559526,197.47,197.44,5.0648]
[1739319787862,15.42559526,197.47,197.42,5.0653]
[1739319788052,15.42559526,197.48,197.42,5.0653]
[1739319788456,15.42569526,197.5,197.43,28.83744379]
[1739319788866,15.42559526,197.49,197.43,28.83744379]
[1739319789068,15.42559526,197.49,197.43,13.41184853]
[1739319789265,15.42559526,197.48,197.43,13.41184853]
[1739319789470,15.42559526,197.47,197.43,13.41184853]
[1739319789648,15.42559526,197.46,197.43,13.41184853]
[1739319790048,15.42559526,197.46,197.44,5.0648]
[1739319790550,15.42559526,197.46,197.41,5.0655]
[1739319790758,15.42559526,197.43,197.41,5.0655]
[1739319791745,15.42559526,197.45,197.41,5.0655]
[1739319792066,15.42559526,197.47,197.41,5.0655]
[1739319792451,15.42559526,197.45,197.41,5.0655]
[1739319794168,15.42559526,197.45,197.41,5.0955]
[1739319794558,15.42559526,197.43,197.41,5.0955]
[1739319795277,15.42559526,197.42,197.41,5.0955]
[1739319795774,15.42559526,197.42,197.41,0.03]
[1739319796452,20.49089526,197.42,197.41,0.03]
[1739319797475,35.91649052,197.42,197.41,0.03]
[1739319797685,35.91649052,197.42,197.4,0.03]
[1739319797881,30.85119052,197.41,197.4,0.03]
[1739319798966,15.42559526,197.41,197.4,0.03]
[1739319800483,15.42559526,197.46,197.4,0.03]
[1739319800855,15.42559526,197.48,197.42,13.41184853]
[1739319801063,0.0001,197.5,197.43,5.065]
[1739319801064,15.42559526,197.49,197.43,5.065]
[1739319801262,15.42559526,197.49,197.43,20.49059526]
[1739319801463,15.42569526,197.5,197.44,13.41184853]
[1739319802377,0.0001,197.5,197.46,13.41184853]
[1739319802552,0.0001,197.5,197.46,28.83744379]
[1739319803271,0.0001,197.5,197.47,5.064]
[1739319805079,0.0001,197.5,197.48,13.41184853]
[1739319805873,0.0001,197.5,197.46,26.07244853]
[1739319806176,0.0001,197.5,197.48,13.41184853]
[1739319808161,0.0001,197.5,197.49,5.0635]
[1739319808558,0.0001,197.5,197.49,18.47534853]
[1739319811181,0.0001,197.5,197.49,5.0635]
[1739319811479,15.42569526,197.5,197.45,5.0645]
[1739319811672,15.42569526,197.5,197.42,20.3936]
[1739319811673,15.42559526,197.47,197.42,7.7306]
[1739319811859,15.42559526,197.46,197.43,5.0648]
[1739319812775,15.42559526,197.46,197.44,13.41184853]
[1739319814275,15.42559526,197.47,197.44,13.41184853]
[1739319814461,15.42559526,197.48,197.44,13.41184853]
[1739319814663,15.42559526,197.49,197.44,13.41184853]
[1739319814862,0.0001,197.5,197.46,13.41184853]
[1739319815079,0.0001,197.5,197.47,15.42559526]
[1739319815304,0.0001,197.5,197.49,13.41184853]
[1739319816773,0.0001,197.5,197.49,18.47534853]
[1739319817792,0.0001,197.5,197.49,33.90094379]
[1739319818287,0.0001,197.5,197.49,18.47534853]
[1739319820380,15.42569526,197.5,197.45,5.0645]
[1739319820570,15.42559526,197.48,197.45,5.0645]
[1739319820886,15.42559526,197.48,197.42,35.81929526]
[1739319820887,15.42559526,197.48,197.43,13.41184853]
[1739319821090,15.42559526,197.48,197.43,5.065]
[1739319821285,15.42559526,197.48,197.44,13.41184853]
[1739319821476,15.42559526,197.46,197.44,13.41184853]
[1739319821670,15.42559526,197.45,197.43,5.065]
[1739319821874,15.42569526,197.5,197.41,0.03]
[1739319821875,15.42559526,197.44,197.41,0.03]
[1739319822075,15.42559526,197.42,197.41,0.03]
[1739319822984,20.49089526,197.42,197.41,0.03]
[1739319824100,15.42559526,197.42,197.41,0.03]
[1739319829504,15.48859526,197.42,197.41,0.03]
[1739319835436,30.91419052,197.42,197.41,0.03]
[1739319835936,35.97949052,197.42,197.41,0.03]
[1739319836320,15.48859526,197.42,197.41,0.03]
[1739319838635,30.91419052,197.42,197.41,0.03]
[1739319838806,15.48859526,197.42,197.41,0.03]
[1739319841537,35.97949052,197.42,197.41,0.03]
[1739319842441,30.85119052,197.41,197.32,5.0679]
[1739319842616,15.42559526,197.33,197.32,5.0679]
[1739319843550,15.42559526,197.34,197.31,0.03]
[1739319843845,15.42559526,197.36,197.31,13.44184853]
[1739319844838,0.063,197.42,197.31,13.44184853]
[1739319844839,15.42559526,197.38,197.31,28.86744379]
[1739319845036,15.42559526,197.39,197.33,28.83744379]
[1739319845381,0.063,197.42,197.36,30.35254379]
[1739319845520,15.48859526,197.42,197.38,13.41184853]
[1739319845850,0.063,197.42,197.38,13.41184853]
[1739319846048,0.063,197.42,197.38,28.83744379]
[1739319846950,0.063,197.42,197.41,28.83744379]
[1739319847351,0.0001,197.42,197.41,33.90294379]
[1739319850538,0.0001,197.42,197.41,18.47734853]
[1739319850733,0.0001,197.42,197.41,5.0655]
[1739319850941,15.42569526,197.42,197.41,5.0655]
[1739319851643,15.42569526,197.42,197.39,5.0658]
[1739319851856,15.42559526,197.4,197.39,5.0658]
[1739319853648,15.42559526,197.41,197.39,5.0658]
[1739319853852,0.0001,197.42,197.4,13.41184853]
[1739319855556,0.0001,197.42,197.4,5.0658]
[1739319856357,0.0001,197.42,197.41,13.41184853]
[1739319856537,0.0001,197.42,197.41,28.83744379]
[1739319857668,0.0001,197.42,197.41,33.90294379]
[1739319863354,0.0001,197.42,197.41,18.47734853]
[1739319863669,15.42569526,197.42,197.41,5.0655]
[1739319863873,0.0001,197.42,197.41,5.0655]
[1739319865390,0.0001,197.42,197.39,5.0961]
[1739319865578,0.0001,197.42,197.4,13.41184853]
[1739319867470,0.0001,197.42,197.4,5.0658]
[1739319869491,0.0001,197.42,197.4,13.41184853]
[1739319871481,0.0001,197.42,197.41,5.0655]
[1739319871780,15.42569526,197.42,197.39,5.0958]
[1739319871985,15.42559526,197.4,197.39,5.0958]
[1739319872368,15.42559526,197.4,197.39,0.03]
[1739319873291,30.85119052,197.4,197.39,0.03]
[1739319875771,15.42559526,197.4,197.39,0.03]
[1739319881981,35.91699052,197.4,197.39,0.03]
[1739319883098,15.42559526,197.4,197.39,0.03]
[1739319887888,35.91699052,197.4,197.39,0.03]
[1739319888184,30.85119052,197.4,197.39,0.03]
[1739319888388,15.42559526,197.4,197.39,0.03]
[1739319894297,15.42559526,197.41,197.39,0.03]
[1739319895507,15.42559526,197.4,197.39,0.03]
[1739319901115,15.42559526,197.41,197.39,0.03]
[1739319901591,15.42559526,197.4,197.39,0.03]
[1739319903804,30.85119052,197.4,197.39,0.03]
[1739319905726,15.42559526,197.4,197.39,0.03]
[1739319906607,0.0001,197.42,197.39,0.03]
[1739319906993,0.0001,197.42,197.39,15.45559526]
[1739319907198,0.0001,197.42,197.41,13.41184853]
[1739319907531,0.0001,197.42,197.41,18.47734853]
[1739319907711,0.0001,197.42,197.41,33.90294379]
[1739319912822,0.0001,197.42,197.41,34.90294379]
[1739319915101,0.0001,197.42,197.41,33.90294379]
[1739319915463,0.0001,197.42,197.41,18.47734853]
[1739319915812,15.42569526,197.42,197.41,18.47734853]
[1739319916038,0.0001,197.42,197.41,18.47734853]
[1739319918224,0.0001,197.42,197.41,5.0655]
[1739319918425,15.42569526,197.42,197.41,5.0655]
[1739319918742,15.42569526,197.42,197.39,5.0959]
[1739319918925,15.42559526,197.4,197.39,0.03]
[1739319921742,0.0001,197.42,197.39,0.03]
[1739319923242,0.0001,197.42,197.39,13.44184853]
[1739319923435,0.0001,197.42,197.41,15.42559526]
[1739319923640,0.0001,197.42,197.41,28.83744379]
[1739319924525,0.0001,197.42,197.41,33.90294379]
[1739319928046,0.0001,197.42,197.41,18.47734853]
[1739319929336,0.0001,197.42,197.41,33.90294379]
[1739319929552,0.0001,197.42,197.41,18.47734853]
[1739319933951,0.0001,197.42,197.41,33.90294379]
[1739319934333,0.0001,197.42,197.41,34.05843379]
[1739319943744,0.0001,197.42,197.41,28.49705586]
[1739319944256,0.0001,197.42,197.41,29.62254586]
[1739319944430,0.0001,197.42,197.41,30.63295832]
[1739319945041,0.0001,197.5,197.46,0.12549]
[1739319945246,0.0001,197.5,197.49,9.86421733]
[1739319945449,0.0001,197.5,197.49,28.33956586]
[1739319946549,0.0001,197.5,197.49,28.46505586]
[1739319946854,0.0001,197.5,197.49,30.34974966]
[1739319947763,0.0001,197.5,197.49,35.88194121]
[1739319948146,0.0001,197.5,197.49,33.99724741]
[1739319949045,0.0001,197.5,197.49,35.75643758]
[1739319949658,0.0001,197.5,197.49,37.13290758]
[1739319949957,0.063,197.6,197.54,0.12549]
[1739319950156,0.063,197.6,197.55,35.39640888]
[1739319950340,15.45940888,197.6,197.55,20.0]
[1739319950542,15.39640888,197.58,197.55,20.0]
[1739319950752,15.39640888,197.59,197.56,13.41184853]
[1739319950945,15.45940888,197.6,197.56,13.41184853]
[1739319951140,0.063,197.6,197.56,13.41184853]
[1739319952160,0.063,197.6,197.58,13.41184853]
[1739319953462,0.063,197.6,197.57,18.47324853]
[1739319953649,15.45940888,197.6,197.57,18.47324853]
[1739319953853,0.063,197.6,197.57,18.47324853]
[1739319954054,15.45940888,197.6,197.57,18.47324853]
[1739319955159,0.063,197.6,197.57,18.47324853]
[1739319956862,15.45940888,197.6,197.57,18.47324853]
[1739319957252,15.39640888,197.59,197.57,18.47324853]
[1739319957449,15.39640888,197.58,197.53,5.0625]
[1739319957647,15.39640888,197.58,197.54,13.41184853]
[1739319958255,15.45940888,197.6,197.54,28.80825741]
[1739319958458,0.063,197.6,197.56,13.41184853]
[1739319958842,0.063,197.6,197.55,0.12549]
[1739319959043,0.063,197.6,197.56,13.41184853]
[1739319959266,0.063,197.6,197.56,28.80825741]
[1739319960148,0.063,197.6,197.57,5.0614]
[1739319960473,0.063,197.6,197.58,13.41184853]
[1739319960649,0.063,197.6,197.59,15.39640888]
[1739319961379,0.0001,197.6,197.59,28.80825741]
[1739319962139,0.0001,197.6,197.59,33.99464741]
[1739319962378,0.0001,197.6,197.59,18.47274853]
[1739319962748,0.0001,197.6,197.59,33.86915741]
[1739319965083,0.0001,197.62,197.6,13.41184853]
[1739319965380,0.0001,197.62,197.6,28.80825741]
[1739319966245,0.063,197.65,197.62,13.41184853]
[1739319966450,0.0001,197.65,197.64,28.80825741]
[1739319966677,0.0001,197.65,197.64,109.95923741]
[1739319967181,0.0001,197.65,197.64,115.01893741]
[1739319968781,0.0001,197.65,197.64,18.47154853]
[1739319969678,0.0001,197.65,197.61,15.39640888]
[1739319969679,15.39650888,197.65,197.62,5.0599]
[1739319969851,15.39640888,197.64,197.63,13.41184853]
[1739319970191,15.39640888,197.64,197.61,5.0604]
[1739319970364,15.39640888,197.62,197.57,5.0614]
[1739319970550,15.39640888,197.58,197.54,5.0622]
[1739319971053,15.39640888,197.58,197.55,13.41184853]
[1739319971253,15.39640888,197.59,197.52,20.45910888]
[1739319971665,15.39640888,197.59,197.53,13.41184853]
[1739319972059,15.39640888,197.61,197.55,13.41184853]
[1739319972448,15.39640888,197.6,197.55,13.41184853]
[1739319973258,15.39640888,197.62,197.57,13.41184853]
[1739319973460,15.39640888,197.63,197.57,13.41184853]
[1739319973656,15.39640888,197.61,197.57,13.41184853]
[1739319974164,15.39640888,197.6,197.57,13.41184853]
[1739319974772,15.39640888,197.62,197.57,13.41184853]
[1739319975163,15.39640888,197.61,197.57,13.41184853]
[1739319975452,15.39640888,197.59,197.55,18.47384853]
[1739319975954,15.39640888,197.58,197.55,18.47384853]
[1739319976181,15.39640888,197.57,197.55,18.47384853]
[1739319977285,15.39640888,197.58,197.55,18.47384853]
[1739319978488,15.39640888,197.6,197.55,31.12884853]
[1739319978670,15.39640888,197.62,197.55,46.52525741]
[1739319978864,15.39640888,197.63,197.57,13.41184853]
[1739319979257,15.39640888,197.62,197.56,13.41184853]
[1739319979683,15.39640888,197.63,197.58,13.41184853]
[1739319979980,15.39640888,197.62,197.58,13.41184853]
[1739319980369,15.39640888,197.61,197.57,5.0614]
[1739319980575,15.39640888,197.59,197.57,5.0614]
[1739319980869,15.39640888,197.59,197.58,13.41184853]
[1739319981084,15.39640888,197.6,197.58,13.41184853]
[1739319981383,15.39640888,197.61,197.58,13.41184853]
[1739319981591,0.063,197.6,197.59,5.0609]
[1739319981794,0.063,197.6,197.59,18.47274853]
[1739319986864,15.45940888,197.6,197.59,5.0609]
[1739319987693,15.45940888,197.6,197.57,13.44184853]
[1739319987867,15.39640888,197.59,197.57,13.44184853]
[1739319988391,15.45940888,197.6,197.57,13.44184853]
[1739319989567,0.063,197.6,197.57,13.44184853]
[1739319989892,0.063,197.6,197.58,5.0612]
[1739319990193,0.063,197.6,197.59,13.41184853]
[1739319991478,15.45940888,197.6,197.59,13.41184853]
[1739319992284,0.063,197.6,197.59,13.41184853]
[1739319997593,0.063,197.6,197.58,18.47304853]
[1739319997904,0.0001,197.65,197.6,13.41184853]
[1739319998889,0.0001,197.65,197.61,31.12334853]
[1739320000996,15.39640888,197.64,197.61,31.12334853]
[1739320001196,15.39640888,197.63,197.61,18.47224853]
[1739320001498,15.39640888,197.62,197.61,18.47224853]
[1739320001675,15.39640888,197.63,197.61,18.47224853]
[1739320004270,15.39640888,197.62,197.61,5.0604]
[1739320004491,15.39640888,197.62,197.58,5.0612]
[1739320004695,0.0001,197.65,197.58,5.0612]
[1739320004881,15.39640888,197.63,197.59,13.41184853]
[1739320005090,15.39640888,197.62,197.59,13.41184853]
[1739320005584,15.39640888,197.62,197.6,5.0607]
[1739320006809,15.39640888,197.61,197.59,0.03]
[1739320007015,15.39640888,197.6,197.59,0.03]
[1739320007716,15.39640888,197.6,197.59,5.0909]
[1739320008499,15.39640888,197.6,197.59,0.03]
[1739320011296,15.39640888,197.61,197.59,0.03]
[1739320013110,15.39640888,197.6,197.59,0.03]
[1739320018616,30.79281776,197.6,197.59,0.03]
[1739320020001,15.39640888,197.6,197.59,0.03]
[1739320023039,0.063,197.61,197.59,0.03]
[1739320023831,15.45940888,197.61,197.59,0.03]
[1739320025025,0.063,197.61,197.59,0.03]
[1739320025635,0.063,197.61,197.6,13.41184853]
[1739320027634,0.063,197.61,197.6,5.0607]
[1739320028638,0.0001,197.61,197.6,33.99444741]
[1739320032252,0.0001,197.61,197.6,18.47254853]
[1739320032741,0.0001,197.61,197.6,33.99444741]
[1739320034456,0.0001,197.61,197.6,34.11993741]
[1739320034626,0.0001,197.61,197.6,130.66732629]
[1739320034834,0.0001,197.61,197.6,139.58252629]
[1739320035328,0.0001,197.69,197.64,49.05923741]
[1739320035527,0.0001,197.69,197.68,15.39640888]
[1739320035728,0.0001,197.69,197.68,28.80825741]
[1739320036051,0.063,197.71,197.69,13.41184853]
[1739320036258,0.063,197.71,197.7,28.80825741]
[1739320036555,0.063,197.71,197.7,33.86635741]
[1739320038947,15.39640888,197.76,197.71,13.41184853]
[1739320039560,15.39640888,197.76,197.72,5.0576]
[1739320039857,15.39640888,197.77,197.72,5.0576]
[1739320040722,0.063,197.78,197.76,20.0]
[1739320040922,0.063,197.81,197.77,48.93374741]
[1739320041126,0.063,197.81,197.8,28.80825741]
[1739320041548,0.063,197.81,197.8,33.86385741]
[1739320042634,0.063,197.83,197.82,25.0551]
[1739320042858,0.063,197.83,197.82,38.46694853]
[1739320043362,0.063,197.85,197.83,13.41184853]
[1739320043727,0.063,197.85,197.83,28.80825741]
[1739320043934,0.063,197.85,197.84,28.80825741]
[1739320044859,0.063,197.85,197.84,18.46634853]
[1739320046466,15.39640888,197.89,197.84,31.10274853]
[1739320048363,0.063,197.9,197.86,17.6891]
[1739320049171,0.0001,197.9,197.89,33.41184853]
[1739320049560,0.0001,197.9,197.89,13.41184853]
[1739320050370,0.0001,197.9,197.89,18.46514853]
[1739320052652,0.0001,197.91,197.9,13.41184853]
[1739320054068,0.0001,197.91,197.9,18.46484853]
[1739320061070,0.0001,197.91,197.9,33.86125741]
[1739320066579,0.0001,197.91,197.9,34.11223741]
[1739320066886,0.0001,197.91,197.9,115.01223741]
[1739320068579,15.39640888,198.0,197.94,13.41184853]
[1739320069086,15.39640888,198.01,197.94,28.80825741]
[1739320069587,9.81343571,198.01,197.98,13.41184853]
[1739320070187,9.81343571,198.0,197.98,13.41184853]
[1739320070772,9.81343571,197.99,197.98,18.46274853]
[1739320071078,9.81343571,197.99,197.98,5.0509]
[1739320072469,8.8139502,197.99,197.98,5.0509]
[1739320074765,8.8139502,197.99,197.95,5.0517]
[1739320075090,9.81343571,197.96,197.95,5.0517]
[1739320075785,9.81343571,197.96,197.92,13.41184853]
[1739320075983,9.81343571,197.94,197.92,13.41184853]
[1739320078192,9.81343571,197.94,197.93,5.0522]
[1739320078578,9.81343571,197.95,197.93,5.0522]
[1739320078779,9.81343571,197.96,197.93,5.0522]
[1739320078992,9.81343571,197.95,197.93,5.0522]
[1739320080887,9.81343571,197.96,197.93,5.0522]
[1739320081089,9.81343571,197.97,197.94,13.41184853]
[1739320082191,9.81343571,197.97,197.96,13.41184853]
[1739320083998,9.81343571,197.97,197.94,18.46384853]
[1739320084176,9.81343571,197.98,197.94,18.46384853]
[1739320084387,9.81343571,197.98,197.94,31.09384853]
[1739320085622,0.03,197.99,197.94,40.90728424]
[1739320085807,0.03,197.99,197.98,13.41184853]
[1739320086094,0.0001,197.99,197.98,23.22528424]
[1739320087184,0.0001,197.99,197.98,23.47626424]
[1739320087576,0.0001,197.99,197.98,28.52726424]
[1739320088371,0.0001,197.99,197.98,28.27628424]
[1739320088578,0.0001,197.99,197.98,18.46284853]
[1739320090003,0.0001,197.99,197.95,5.0517]
[1739320090191,0.0001,197.99,197.96,13.41184853]
[1739320090499,15.33151254,197.98,197.96,13.41184853]
[1739320090699,15.33151254,197.97,197.96,13.41184853]
[1739320091900,0.0001,197.99,197.96,13.41184853]
[1739320091901,15.33151254,197.98,197.96,13.41184853]
[1739320092598,15.33151254,197.98,197.95,18.46354853]
[1739320093804,0.0001,197.99,197.95,13.41184853]
[1739320093805,15.33151254,197.97,197.95,13.41184853]
[1739320093994,15.33151254,197.96,197.95,13.41184853]
[1739320096308,15.33151254,197.96,197.95,18.46354853]
[1739320096607,15.33151254,197.96,197.94,20.063]
[1739320096788,15.33151254,197.96,197.94,25.1149]
[1739320099821,15.33151254,197.95,197.94,0.063]
[1739320109621,21.91061254,197.95,197.94,0.063]
[1739320110416,1.0,197.94,197.9,0.063]
[1739320110629,15.33151254,197.91,197.9,0.063]
[1739320111817,9.82621938,197.91,197.9,0.063]
[1739320112936,9.82621938,197.92,197.9,0.063]
[1739320113111,9.82621938,197.93,197.9,0.063]
[1739320114418,9.82621938,197.94,197.9,0.063]
[1739320114621,9.82621938,197.93,197.9,0.063]
[1739320115210,9.82621938,197.91,197.9,0.063]
[1739320123521,9.82621938,197.92,197.9,0.063]
[1739320124431,9.82621938,197.93,197.9,0.063]
[1739320124911,9.85621938,197.94,197.9,0.063]
[1739320126014,9.85621938,197.94,197.9,13.47484853]
[1739320126408,0.03,197.94,197.9,13.47484853]
[1739320126613,0.03,197.94,197.9,23.30106791]
[1739320127734,0.03,197.94,197.93,23.23806791]
[1739320129223,0.03,197.94,197.93,28.29026791]
[1739320129526,0.03,197.94,197.93,18.46404853]
[1739320130930,0.0001,197.94,197.93,33.80029991]
[1739320132337,0.0001,197.94,197.93,33.92578991]
[1739320133033,0.0001,197.99,197.96,20.0]
[1739320133239,0.0001,197.99,197.98,33.41184853]
[1739320135235,0.0001,197.99,197.98,38.46284853]
[1739320137041,15.33635138,197.99,197.91,5.0528]
[1739320137351,15.33625138,197.95,197.92,13.41184853]